Cogmind - Beta 14 @@@ ROGUE MODE // 2024.09.20 @ 03:13:32 Player: Some Pennies Result: Destroyed by I8-C44(R) with Subdweller Machine Gun Performance ------------- Evolutions (0) 0 Regions Visited (2) 400 Robots Destroyed (41) 205 Value Destroyed (981) 981 Prototype IDs (1) 20 Alien Tech Used (0) 0 Bonus (0) 0 TOTAL SCORE: 1606 Bonus ------- None Cogmind --------- Core Integrity 0/250 Matter 296/300 Energy 179/200 System Corruption 1% Temperature Cool (0) Movement Walking (130) Location -10/Subcaves Parts ------- > --- POWER (1) -------- Subdweller Power Source > --- PROPULSION (2) --- Cargo Legs > --- UTILITY (2+2) ---- Medium Storage Unit Seismic Detector Scrap Shield (++) > --- WEAPON (2) ------- Subdweller Beam Cannon Barrage Gun > --- INVENTORY (10) --- Huge Storage Unit ECM Suite Makeshift Medium Armor Plating Hacking Suite Hacking Suite Hacking Suite Riot Gun Grenade Launcher Datajack Multitool Peak State ------------ > --- POWER ------------ Light Nuclear Core > --- PROPULSION ------- Cargo Legs > --- UTILITY ---------- Medium Storage Unit Subdweller Optics Scrap Shield > --- WEAPON ----------- Subdweller Laser Subdweller Beam Cannon > --- INVENTORY -------- Subdweller Monowheel Huge Storage Unit Seismic Detector ECM Suite Hacking Suite Hacking Suite Hacking Suite Medium Laser Grenade Launcher Datajack [Rating: 31] Favorites ----------- Power Ion Engine Engine Ion Engine Power Core Light Nuclear Core Propulsion Light Treads Treads Light Treads Leg Cargo Legs Wheel Subdweller Monowheel Utility Seismic Detector Device Seismic Detector Storage Huge Storage Unit Protection Scrap Shield Weapon Medium Laser Energy Gun Medium Laser Energy Cannon Subdweller Beam Cannon Ballistic Gun Barrage Gun Special Weapon Mining Laser Build | -11 -10 -10 ------- Run | Yrd Mat Sub Slots Evolved . | . . . Power . | . . . Propulsion . | . . . Utility . | . . . Weapon . | . . . Parts Attached 32 | 7 7 18 Power 5 | 1 1 3 Engine 4 | 1 1 2 Core 1 | . . 1 Reactor . | . . . Propulsion 5 | 2 1 2 Treads 3 | 2 1 . Leg 1 | . . 1 Wheel 1 | . . 1 Hover . | . . . Flight . | . . . Utility 13 | 2 3 8 Device 5 | 1 1 3 Storage 6 | 1 2 3 Processor . | . . . Hackware . | . . . Protection 2 | . . 2 Artifact . | . . . Weapon 9 | 2 2 5 Energy Gun 6 | 2 2 2 Energy Cannon 1 | . . 1 Ballistic Gun 1 | . . 1 Ballistic Cannon . | . . . Launcher . | . . . Special Weapon 1 | . . 1 Impact Weapon . | . . . Slashing Weapon . | . . . Piercing Weapon . | . . . Special Melee Weapon . | . . . Unidentified Prototypes 1 | . . 1 Parts Lost 7 | . 1 6 Power 2 | . . 2 Propulsion 3 | . 1 2 Utility 2 | . . 2 Weapon . | . . . Highest Loss Streak 3 | . 1 3 To Critical Strikes 1 | . . 1 Average Slot Usage (%) 90 | . 99 81 Engine 10 | . 14 7 Core 2 | . . 4 Treads 15 | . 27 5 Leg 3 | . . 6 Wheel 2 | . . 4 Device 12 | . 14 10 Storage 12 | . 14 10 Protection 3 | . . 6 Energy Gun 21 | . 28 15 Energy Cannon 3 | . . 6 Peak Build Rating 31 | 7 10 31 Average Rating 14 | 6 8 21 On Entrance 5 | . 7 10 Naked Turns . | . . . Heaviest Build 92 | 14 90 92 Greatest Support 55 | 40 40 55 Greatest Overweight (x) 4 | . 2 4 Average Overweight (x) . | . . . Largest Inventory Capacity 25 | 8 25 25 Average Capacity 15 | 7 17 14 Most Carried 19 | 5 18 19 Average Carried 10 | 2 11 11 Final Capacity 25 | 8 25 10 Final Carried 18 | 5 18 10 Class Distribution -------------------- 73% | Mutant 26% | Subdweller-Mutant Dominant Class ---------------- Mutant | -10/Materials Subdweller-Mutant | -10/Subcaves Resources | -11 -10 -10 ----------- Run | Yrd Mat Sub Matter Collected 524 | 270 65 189 Remotely . | . . . Salvage Created 1567 | 254 770 543 Parts 87 | 19 36 32 Haulers Intercepted 1 | . 1 . Recyclers Shooed 2 | . 2 . Parts Field Recycled . | . . . Retrieved Matter . | . . . Parts Self-Destructed 14 | . . 14 Prevented . | . . . Kills | -11 -10 -10 ------- Run | Yrd Mat Sub Combat Hostiles Destroyed 25 | . 11 14 Guns 19 | . 10 9 Cannons 4 | . . 4 Classes Destroyed 9 | 3 4 2 Worker 2 | 1 1 . Tunneler 6 | 6 . . Hauler 1 | . 1 . Recycler 3 | 1 2 . Operator 3 | . 3 . Watcher 1 | . 1 . Swarmer 4 | . . 4 Grunt 11 | . 11 . Subdweller 10 | . . 10 Best Kill Streak 3 | 3 3 2 Combat Bots Only 2 | . 2 2 Max Kills in Single Turn 2 | 1 1 2 Gunslinging 1 | . . 1 Exploded . | . . . Melee . | . . . Uniques/NPCs Destroyed . | . . . Combat | -11 -10 -10 -------- Run | Yrd Mat Sub Hostile Shots Fired 156 | . 71 85 Missed 39 | . 18 21 Damage Taken 1726 | . 694 1032 Core 257 | . 126 131 Absorbed by Shields . | . . . Core Remaining (%) 100 | 100 . . Volleys Fired 163 | 18 95 50 Largest 2 | 2 2 2 Hottest 140 | 90 100 140 Shots Fired 313 | 36 188 89 Gun 285 | 36 188 61 Cannon 26 | . . 26 Launcher . | . . . Special 2 | . . 2 Kinetic 5 | . . 5 Thermal 308 | 36 188 84 Explosive . | . . . Electromagnetic . | . . . Robot Hit Streak 23 | 8 12 23 Robot Miss Streak 5 | 2 5 5 Penetration Max . | . . . Secondary Targets 4 | . 2 2 Max Gunslinging Chain 1 | . 1 1 Shots Hit Robots 185 | 21 104 60 Core Hits 67 | 9 38 20 Critical Kills 1 | . . 1 Critical Parts Destroyed . | . . . Critical Strikes 22 | 2 13 7 Burn 19 | 2 13 4 Meltdown 1 | . . 1 Destroy 2 | . . 2 Melee Attacks . | . . . Impact . | . . . Slashing . | . . . Piercing . | . . . Sneak Attacks . | . . . Combat Hostiles . | . . . Follow-up Attacks . | . . . Damage Inflicted 2692 | 248 1270 1174 Guns 2171 | 248 1270 653 Cannons 521 | . . 521 Explosions . | . . . Melee . | . . . Ramming . | . . . Kinetic 77 | . . 77 Thermal 2615 | 248 1270 1097 Explosive . | . . . Electromagnetic . | . . . Impact . | . . . Slashing . | . . . Piercing . | . . . Highest Corruption 1 | . 1 1 Average Corruption 1 | . 1 1 Corruption Purged . | . . . Corruption Blocked . | . . . Effects 18 | . 6 12 Message Errors 3 | . 1 2 Matter Fused 1 | . . 1 Heat Flow Errors 7 | . 2 5 Energy Discharges 4 | . 2 2 Data Loss (minor) 2 | . 1 1 Weapon Failures 1 | . . 1 Overload Shots . | . . . Overflow Damage . | . . . Projectiles . | . . . Explosions . | . . . Melee . | . . . Knockbacks . | . . . Impact . | . . . Kinetic . | . . . Secondary . | . . . Self-Inflicted Damage . | . . . Shots . | . . . Rammed . | . . . Targets Rammed . | . . . Kicked . | . . . Crushed . | . . . Highest Temperature 250 | 90 250 209 Average Temperature 46 | 33 50 47 Received Heat Transfer 558 | . 369 189 Siege Activations . | . . . Robots Corrupted . | . . . Combat Hostiles . | . . . Parts Fried . | . . . Impact Corruptions . | . . . Robots Melted 2 | . 1 1 Combat Hostiles 2 | . 1 1 Parts Melted 20 | 1 14 5 Heat Transferred 7494 | 817 4428 2249 Parts Sabotaged . | . . . Parts Stolen . | . . . Parts Stripped . | . . . Power Chain Reactions . | . . . Alert | -11 -10 -10 ------- Run | Yrd Mat Sub Peak Influence 232 | 40 232 . Initial 26 | . 26 . Average 102 | 16 116 . Maximum Alert Level 1 | . 1 . Low Security (%) 95 | 100 95 . Level 1 4 | . 4 . Level 2 . | . . . Level 3 . | . . . Level 4 . | . . . Level 5 . | . . . High Security . | . . . Max Security . | . . . Squads Dispatched 5 | . 5 . Investigation 2 | . 2 . Extermination . | . . . Reinforcement 3 | . 3 . Assault . | . . . Garrison . | . . . Intercept . | . . . Searches Triggered . | . . . Construction Impeded . | . . . Haulers Reinforced . | . . . Active Scanning Responses . | . . . Cargo Convoy Interrupts . | . . . Stealth | -11 -10 -10 --------- Run | Yrd Mat Sub Distress Signals 1 | . 1 . Communications Jammed . | . . . Distress Signals . | . . . Times Spotted 52 | . 36 16 Peak Tracking Total 4 | . 4 3 Tactical Retreats 3 | . 1 2 Traps | -11 -10 -10 ------- Run | Yrd Mat Sub Traps Triggered 2 | . 2 . Indirectly . | . . . Trap Hack Attempts . | . . . Triggered . | . . . Disarmed . | . . . Reprogrammed . | . . . Reused . | . . . Traps Extracted . | . . . Installed . | . . . Triggered . | . . . Machines | -11 -10 -10 ---------- Run | Yrd Mat Sub Machines Disabled . | . . . Max in Single Turn . | . . . Machines Repaired . | . . . Machines Dismantled . | . . . Machines Sabotaged . | . . . Overloaded Fab Kills . | . . . Hacking | -11 -10 -10 --------- Run | Yrd Mat Sub Machines Accessed 4 | . 3 1 Terminals 1 | . 1 . Fabricators . | . . . Repair Stations . | . . . Recycling Units 2 | . 2 . Scanalyzers . | . . . Garrison Access . | . . . Total Hacks 16 | . 13 3 Successful 8 | . 5 3 Failed 8 | . 8 . Catastrophic 1 | . 1 . Database Lockouts . | . . . Manual 7 | . 7 . Terminals 5 | . 5 . Fabricators . | . . . Repair Stations . | . . . Recycling Units 8 | . 8 . Scanalyzers . | . . . Garrison Access . | . . . Terminal Hacks 3 | . . 3 Record 3 | . . 3 Fabricator Hacks . | . . . Repair Station Hacks . | . . . Recycling Unit Hacks 1 | . 1 . Retrieve Components 1 | . 1 . Scanalyzer . | . . . Garrison Access Hacks . | . . . Unauthorized Hacks 4 | . 4 . Terminals 2 | . 2 . Botnet 1 | . 1 . Skim 1 | . 1 . Fabricators . | . . . Repair Stations . | . . . Recycling Units 2 | . 2 . Tunnel 2 | . 2 . Scanalyzers . | . . . Garrison Access . | . . . Data Cores Recovered 1 | . 1 . Used . | . . . Hacking Detections 3 | . 3 . Full Trace Events . | . . . Feedback Events . | . . . Feedback Blocked . | . . . Robot Schematics Acquired . | . . . Robots Built . | . . . Authchips . | . . . Time . | . . . Total Robot Build Rating . | . . . Part Schematics Acquired . | . . . Parts Built . | . . . Authchips . | . . . Time . | . . . Total Part Build Rating . | . . . Parts Repaired . | . . . Time . | . . . Parts Recycled . | . . . Recycled Matter . | . . . Retrieved Matter . | . . . Retrieved Components 10 | . 10 . Parts Scanalyzed . | . . . Part Schematics Acquired . | . . . Parts Damaged . | . . . Bothacking | -11 -10 -10 ------------ Run | Yrd Mat Sub Used RIF Installer . | . . . Robots Hacked . | . . . Non-combat . | . . . Combat . | . . . Robot Hacks Applied . | . . . Relay Couplers Released . | . . . Fabnet Peak Effective % . | . . . Robots Rewired . | . . . Allies Hacked . | . . . Hacks Repelled . | . . . Allies | -11 -10 -10 -------- Run | Yrd Mat Sub Total Allies . | . . . Largest Group . | . . . Highest-Rated Group . | . . . Highest-Rated Ally . | . . . Total Orders . | . . . Ally Attacks . | . . . Total Damage . | . . . Kills . | . . . Allies Corrupted . | . . . Allies Melted . | . . . Intel | -11 -10 -10 ------- Run | Yrd Mat Sub Robot Analysis Total . | . . . Derelict Logs Recovered 1 | . . 1 Drone Launches . | . . . Drone Recoveries . | . . . Exploration | -11 -10 -10 ------------- Run | Yrd Mat Sub Turns Passed 3543 | 269 1578 1696 Spaces Moved 1599 | 125 595 879 Core 4 | 3 . 1 Treads 827 | 122 595 110 Legs 647 | . . 647 Wheels 121 | . . 121 Hover . | . . . Flight . | . . . Fastest Speed 50 | 50 160 110 Average Speed 178 | 157 202 165 Slowest Speed 480 | 160 320 480 Overloaded Moves . | . . . Propulsion Burnouts . | . . . Robots Hopped . | . . . Cave-ins Triggered . | . . . Exploration Rate (%) 44 | 7 80 47 Regions Visited 2 Branch Regions 1 Pre-discovered Areas 3 | . 2 1 Known Exits Taken . | . . . Unknown Exits Taken 2 | 1 1 . Scrap Searched 3 | . . 3 Spaces Dug . | . . . Terrain Destroyed . | . . . Melee . | . . . Projectile . | . . . AOE . | . . . Terrain Rammed . | . . . Walls Destroyed . | . . . Machines Disabled . | . . . Actions | -11 -10 -10 --------- Run | Yrd Mat Sub Total 1971 | 161 780 1030 Wait 105 | . 62 43 Move 1597 | 124 594 879 Hop . | . . . Pick Up 45 | 12 16 17 Fast Attach 7 | . 2 5 Attach 16 | 7 1 8 Detach . | . . . Swap 9 | . 4 5 Drop 20 | . 6 14 Fire 163 | 18 95 50 Melee . | . . . Ram . | . . . Kick . | . . . Crush . | . . . Escape Stasis . | . . . Rewire . | . . . Trap . | . . . Miscellaneous 9 | . . 9 Route ------- -11/Scrapyard -10/Materials (discovered 4 exits: [*Mat] / [*Min x2] / *Sub) -10/Subcaves (discovered 3 exits: [*Mat x2] / Rec) History --------- Turn | Location | Event 43 | -11/Scrapyard | Discovered new exit (range 15) 270 | -11/Scrapyard | Entered Materials 270 | -10/Materials | Discovered new exit (range 9) 309 | -10/Materials | Build established: Mutant 860 | -10/Materials | Discovered new exit (range 8) 1136 | -10/Materials | Discovered new exit (range 3) 1335 | -10/Materials | Core integrity fell below 50% 1462 | -10/Materials | Discovered new exit (range 7) 1848 | -10/Materials | Entered Subcaves 1862 | -10/Subcaves | Shifting Twisted Machinery released Sub. Monowheel 1936 | -10/Subcaves | Discovered new exit (range 5) 1974 | -10/Subcaves | Learned location of Zion (-7) 1974 | -10/Subcaves | Met a Zionite searching for "candidates" 2043 | -10/Subcaves | Lost 3 parts (1p1n1u) 2301 | -10/Subcaves | Learned Materials non-interactive machine intel 2331 | -10/Subcaves | Shifting Twisted Machinery released Flamer 2522 | -10/Subcaves | A Subdweller sparked back to life 2522 | -10/Subcaves | A Subdweller sparked back to life 2531 | -10/Subcaves | Core integrity fell below 20% 2544 | -10/Subcaves | Found Prototype Leg 2544 | -10/Subcaves | Identified Cargo Legs 2545 | -10/Subcaves | Attached Cargo Legs, gained temporary slots: Utility x2 2788 | -10/Subcaves | A swath of the cavern ceiling suddenly collapsed 2889 | -10/Subcaves | Visited Clippyterm 2892 | -10/Subcaves | Identified exit to Recycling 3000 | -10/Subcaves | Discovered new exit (range 8) 3051 | -10/Subcaves | Build established: Subdweller-Mutant 3312 | -10/Subcaves | Ambushed by Subdwellers from Twisted Machinery 3544 | -10/Subcaves | Destroyed by I8-C44(R) with Subdweller Machine Gun Last Messages --------------- 03281_ Acquired Riot Gun. 03305_ System corrupted: Energy discharge (-50). 03312_ X7-PF1(R) emerges from the Twisted Machinery. 03318_ System corrupted: Barrage Gun jammed. 03318_ X7-PF1(R) destroyed. 03321_ System corrupted: Matter fused (-8). 03323_ IG-7FN(R) suffers critical hit (Meltdown). 03323_ Sub. Laser melted. 03326_ Scrap Shield Fragment affixed to Scrap Shield (+44). 03327_ Acquired 24 matter. 03331_ Scrap Shield Fragment affixed to Scrap Shield (+49). 03333_ Scrap Shield Fragment affixed to Scrap Shield (+47). 03346_ Scrap Shield Fragment affixed to Scrap Shield (+28). 03523_ I8-C44(R): "WEHOME!" Map ----- +----------------------------------------------------+ | ?????????????????????????????????????????????????? | | ?????????????????????????????????????????????????? | | ?????????????????????????????????????????????????? | | ?????????????????????????????????????????????????? | | ?????????????????????????????????????????????????? | | ?????????????????????????????????????????????????? | | ?????????????????????????????????????????????????? | | ?????????????????????????????????????????????????? | | ?????????????????????????????????????????????????? | | ?????????????????????????????????????????????????? | | ?????????????????????????????? ??????????????????? | | ????????????????????????????? ????????????????? | | ????????????????????? ?????? ?????????????????? | | ????????????????????? ?????? ??????????????????? | | ????????????????????? #???? ????? ????????????? | | ????????????????????? ###? ????? ????????????? | | ????????????????????? ## ???? ?????????????? | | ?????????????????????? ? ??????????????? | | ?????????????????????? ? #??????????????? | | ??????????????????????# ?? ???????????????? | | ??????????????????????# ??? ????????????????? | | ??????????????????????# ##?? ?????????????????? | | ?????????????????????## #?? ##????????????????? | | ?????????????????????# #??? #????????????????? | | ?????????????????????## #### #?????????????????? | | ????????????????????## @## #?????????????????? | | ????????????????????# R ####?????????????## | | ????????????????????### #?????????????# | | ??????????????????????## ##???????????## | | ???????????????????????# #???????##### | | ???????????????????????# ## #??????# | | ???????????????????????#### #?? #????## | | ??????????????????????????# ##??## #?????# ## | | ??????????????????????????## #?????#?????## ## | | ???????????????????????????## #????????????# ## | | ???????????????????????????## ###??????????# | | ?????????????????????##???## ##?????????# | | ????????????????????## #??# #?????????## | | ???????????????????## #?# ##??????????## | | ??????????????????## ## ##????????????### | | ?????????????????## #???????????????# | | ?????????????? ##?????????#???### | | ?????????????? ## ###?????????## ??# # | | ??????????????? ??## ##??????????# ### | | ??????????????? ????### ####???????# | | ???????????????? ???????# #???????# | | ????????????????? #???????## #????????# | | ??????????????????????????## #?#####??## | | ??????????????????????????# #### ##??## | | ??????????????????????????## ###?# ####### | +----------------------------------------------------+ Best States ------------- Heat Dissipation 35 Energy Generation 14 Energy Capacity 250 Matter Stores 300 Matter Capacity 300 Sight Range 21 Terrain Scan Density 10 Armor Coverage 800 Evasion (%) 55 Recoil Reduction 2 Item Schematics ----------------- None Robot Schematics ------------------ None Fabricated ------------ Nothing Alien Tech Used ----------------- None Achievements -------------- None Challenges ------------ None Game ------ Seed AnalysisMachineMinigun Manual? 0 Play Time 00:19:17 Cumulative 327.0 hours Start 2024.09.20 @ 02:56:53 End 2024.09.20 @ 03:13:32 Sessions 1 Manual Loads 0 Difficulty Rogue Special Mode None Game No. 231 Rogue 226 Adventurer 5 Explorer 0 Win Type - Total 7 Types 4/0/3/0/0/0/0/0/0 Lore% 67 Gallery% 85 Achievement% 69 Wizard Run 0 Options --------- Layout 2 ASCII 0 Keyboard 0 Movement Mouse Keybinds 0 Fullscreen 2 Font 24/Smallcaps Map View 50x44 Zoom Use 0% Tactical HUD 1 Map Filters NONE Filters NONE Steam 1 RUN: 180d24fb-5c01-4065-8913-568f927af39e